bitfinex-derivatives/quotes_SOLF0:USTF0_20250808
["timestamp","ask_amount","ask_price","bid_price","bid_amount"]
[1754670688775,3.1,175.76,175.74,3.22]
[1754670689374,4.06012163,175.83,175.74,3.22]
[1754670689375,3.1,175.75,175.74,3.22]
[1754670689577,3.1,175.75,175.73,4.0968348]
[1754670689777,3.1,175.74,175.73,4.0968348]
[1754670689978,3.1,175.74,175.73,7.3168348]
[1754670690676,3.1,175.74,175.73,9.90422966]
[1754670690976,3.1,175.84,175.75,3.22]
[1754670691283,3.1,175.79,175.77,9.86751649]
[1754670691474,3.1,175.8,175.78,3.22]
[1754670691670,3.1,175.8,175.79,6.64751649]
[1754670693279,3.1,175.8,175.77,6.64751649]
[1754670693481,3.1,175.8,175.76,6.68775569]
[1754670693773,3.1,175.8,175.76,0.0402392]
[1754670694077,3.1,175.77,175.76,0.0402392]
[1754670694475,8.7888,175.77,175.76,0.0402392]
[1754670694980,3.1,175.79,175.76,9.90775569]
[1754670695178,3.1,175.79,175.77,3.22]
[1754670695480,6.64751649,175.84,175.76,6.64751649]
[1754670695678,3.1,175.8,175.76,6.64751649]
[1754670696084,3.1,175.8,175.78,0.03669386]
[1754670696273,8.9581,175.79,175.78,0.03669386]
[1754670697977,3.27,175.83,175.8,3.06]
[1754670698178,3.27,175.83,175.82,3.06]
[1754670698477,3.27,175.89,175.82,3.06]
[1754670698878,3.27,175.89,175.82,9.70751649]
[1754670699077,8.9562,175.85,175.84,0.03687089]
[1754670702387,0.04174411,175.86,175.77,9.70751649]
[1754670702586,6.6892606,175.86,175.77,9.70751649]
[1754670702880,3.27,175.85,175.77,9.70751649]
[1754670703687,3.27,175.82,175.75,3.06]
[1754670703880,3.27,175.82,175.75,9.70751649]
[1754670704081,8.9591,175.76,175.75,9.70751649]
[1754670704380,3.27,175.76,175.75,9.70751649]
[1754670704584,8.9591,175.76,175.75,9.70751649]
[1754670704976,8.9595,175.75,175.74,3.06]
[1754670705383,3.27,175.84,175.74,3.06]
[1754670705692,3.27,175.84,175.73,6.64751649]
[1754670705693,5.6891,175.77,175.73,6.64751649]
[1754670705892,3.27,175.82,175.73,6.64751649]
[1754670706188,5.6897,175.75,175.73,6.64751649]
[1754670706383,8.9597,175.75,175.73,9.70751649]
[1754670706584,8.9597,175.75,175.74,3.06]
[1754670706880,3.27,175.74,175.73,6.64751649]
[1754670707086,3.27,175.74,175.73,9.70751649]
[1754670707887,9.00012399,175.76,175.74,3.06]
[1754670708086,3.27,175.75,175.74,3.06]
[1754670708491,8.9594,175.75,175.74,3.06]
[1754670709493,5.6894,175.75,175.74,3.06]
[1754670709686,5.72992399,175.76,175.74,3.06]
[1754670710291,5.6894,175.75,175.74,3.06]
[1754670710799,5.6894,175.75,175.74,7.13918478]
[1754670710987,8.9594,175.75,175.74,7.13918478]
[1754670711384,0.04072399,175.76,175.74,4.07918478]
[1754670711588,3.27,175.75,175.68,4.07918478]
[1754670711987,3.27,175.69,175.68,4.07918478]
[1754670712191,3.27,175.69,175.68,7.13918478]
[1754670713891,8.9614,175.69,175.68,7.13918478]
[1754670714195,8.9614,175.69,175.68,4.07918478]
[1754670714793,3.27,175.68,175.67,6.652874]
[1754670715394,3.27,175.68,175.67,9.712874]
[1754670716195,8.9617,175.68,175.67,6.652874]
[1754670717383,3.27,175.68,175.67,6.652874]
[1754670717584,3.27,175.68,175.67,9.712874]
[1754670717788,3.27,175.69,175.68,3.06]
[1754670718186,3.27,175.69,175.67,6.652874]
[1754670718390,0.03848742,175.7,175.67,6.652874]
[1754670718391,3.27,175.68,175.67,9.712874]
[1754670719094,3.30848742,175.7,175.69,3.06]
[1754670719795,3.27,175.69,175.68,3.06]
[1754670719996,8.9614,175.69,175.68,3.06]
[1754670720191,3.27,175.69,175.68,3.06]
[1754670721995,0.03848742,175.7,175.69,3.06]
[1754670722195,0.03848742,175.7,175.69,9.712874]
[1754670722394,9.38133999,175.75,175.7,3.06]
[1754670722597,9.38133999,175.75,175.68,0.04204583]
[1754670722598,15.07023999,175.77,175.74,6.652874]
[1754670722904,12.65133999,175.79,175.76,6.652874]
[1754670723205,18.33953999,175.79,175.78,6.652874]
[1754670723395,8.9582,175.79,175.78,3.09630058]
[1754670725803,8.9582,175.79,175.78,6.15630058]
[1754670725992,5.6882,175.79,175.78,6.15630058]
[1754670726500,12.73461565,175.83,175.79,3.03]
[1754670726695,3.08,175.82,175.81,3.03]
[1754670726895,3.08,175.82,175.8,6.652874]
[1754670727098,3.08,175.81,175.8,6.652874]
[1754670727303,12.73461565,175.85,175.8,6.69347735]
[1754670727501,3.08,175.84,175.8,6.69347735]
[1754670727699,3.08,175.81,175.8,6.69347735]
[1754670727904,12.73461565,175.85,175.8,6.69347735]
[1754670728095,3.08,175.84,175.82,6.652874]
[1754670728303,3.08,175.83,175.82,6.652874]
[1754670728496,12.73461565,175.86,175.82,6.652874]
[1754670728699,3.08,175.85,175.84,6.652874]
[1754670729399,3.08,175.85,175.83,0.03740352]
[1754670729601,12.73461565,175.85,175.83,0.03740352]
[1754670729906,3.08,175.84,175.83,0.03740352]
[1754670730605,8.7665,175.84,175.83,0.03740352]
[1754670731004,21.50111565,175.84,175.83,0.03740352]
[1754670731305,5.6863,175.85,175.83,0.03740352]
[1754670731607,8.7663,175.85,175.84,6.652874]
[1754670731798,8.7663,175.85,175.83,2.16740352]
[1754670731799,8.7665,175.84,175.83,0.03740352]
[1754670733304,8.7665,175.84,175.83,2.16740352]
[1754670733602,5.6865,175.84,175.83,2.16740352]
[1754670733905,8.7665,175.84,175.83,2.16740352]
[1754670734103,3.08,175.84,175.83,6.69027752]
[1754670734307,15.81461565,175.84,175.83,0.03740352]
[1754670734509,5.6882,175.79,175.78,6.652874]
[1754670734806,3.08,175.79,175.78,4.07790145]
[1754670735707,12.70516506,175.83,175.78,6.24790145]
[1754670735904,3.08,175.82,175.78,4.07790145]
[1754670736107,0.04173297,175.8,175.78,4.07790145]
[1754670736308,3.08,175.79,175.78,4.07790145]
[1754670736602,8.7681,175.79,175.75,237.17]
[1754670736805,9.5279795,175.78,175.77,6.64507438]
[1754670737106,12.6079795,175.78,175.77,6.64507438]
[1754670737609,18.2965795,175.78,175.77,6.64507438]
[1754670738002,8.7686,175.78,175.77,6.64507438]
[1754670738503,5.6891,175.76,175.75,241.64507438]
[1754670738709,8.7691,175.76,175.75,241.64507438]
[1754670739008,3.08,175.76,175.75,6.64507438]
[1754670739410,8.7691,175.76,175.75,6.64507438]
[1754670739713,3.08,175.76,175.73,6.64507438]
[1754670740008,3.08,175.74,175.73,6.64507438]
[1754670740209,9.52993846,175.75,175.73,6.64507438]
[1754670740397,9.52993846,175.75,175.74,2.17]
[1754670741098,12.60993846,175.75,175.73,147.20507438]
[1754670741404,12.60993846,175.75,175.73,149.37507438]
[1754670741606,9.52993846,175.75,175.74,2.17]
[1754670741803,15.21933846,175.75,175.74,2.17]
[1754670742008,18.29933846,175.75,175.73,147.20507438]
[1754670742313,18.29933846,175.75,175.73,149.37507438]
[1754670742810,15.21933846,175.75,175.73,149.37507438]
[1754670743106,8.7698,175.74,175.73,6.64507438]
[1754670743811,8.7701,175.73,175.72,0.03794808]
[1754670744399,3.08,175.73,175.72,0.03794808]
[1754670745211,8.7701,175.73,175.72,0.03794808]
[1754670746209,9.53505982,175.73,175.72,2.20794808]
[1754670746410,3.1211383,175.76,175.72,2.20794808]
[1754670746613,3.1211383,175.76,175.75,6.64507438]
[1754670751117,8.8102383,175.76,175.75,6.64507438]
[1754670751811,3.1211383,175.76,175.75,6.64507438]
[1754670752215,3.1211383,175.76,175.75,8.81507438]
[1754670753211,3.1211383,175.76,175.75,6.64507438]
[1754670753613,8.8102383,175.76,175.75,6.64507438]
[1754670758717,3.1211383,175.76,175.75,4.0789888]
[1754670759324,8.8102383,175.76,175.75,4.0789888]
[1754670761624,0.0411383,175.76,175.75,6.2489888]
[1754670761919,12.70516506,175.82,175.76,2.17]
[1754670762121,8.8674,175.82,175.81,4.0789888]
[1754670763023,15.88516506,175.84,175.81,4.0789888]
[1754670763224,15.88516506,175.84,175.83,4.0789888]
[1754670763521,18.39166506,175.84,175.83,4.0789888]
[1754670764123,21.57166506,175.84,175.83,4.0789888]
[1754670764626,8.8665,175.84,175.83,4.0789888]
[1754670764828,21.57166506,175.84,175.83,4.0789888]
[1754670765325,8.8665,175.84,175.83,4.0789888]
[1754670765534,21.57166506,175.84,175.83,4.0789888]
[1754670767027,8.8665,175.84,175.83,4.0789888]
[1754670767228,21.57166506,175.84,175.83,4.0789888]
[1754670767433,18.39166506,175.84,175.83,4.0789888]
[1754670767630,21.57166506,175.84,175.83,4.0789888]
[1754670768829,3.18,175.83,175.81,4.0789888]
[1754670769039,3.18,175.82,175.81,4.0789888]
[1754670770326,8.8672,175.82,175.81,4.0789888]
[1754670772829,12.73613782,175.84,175.81,4.0789888]
[1754670773141,3.18,175.86,175.84,0.89]
[1754670773337,12.73613782,175.89,175.85,4.9689888]
[1754670773538,3.18,175.87,175.85,0.89]
[1754670773841,5.6857,175.87,175.86,0.89]
[1754670774140,12.73613782,175.89,175.87,0.89]
[1754670774439,3.18,175.88,175.86,0.89]
[1754670774635,8.8652,175.88,175.87,4.0789888]
[1754670776736,8.8659,175.86,175.85,4.11759637]
[1754670778146,5.6853,175.88,175.86,0.89]
[1754670778338,5.6853,175.88,175.87,4.9689888]
[1754670778536,8.8653,175.88,175.87,4.0789888]
[1754670780040,5.6859,175.86,175.85,0.03860757]
[1754670780248,8.8659,175.86,175.85,4.11759637]
[1754670780450,3.18,175.86,175.85,4.11759637]
[1754670780747,8.8658,175.87,175.85,5.00759637]
[1754670781044,3.18,175.86,175.85,4.11759637]
[1754670782346,8.8659,175.86,175.85,4.11759637]
[1754670783145,8.8659,175.86,175.85,0.03860757]
[1754670783346,8.8659,175.86,175.85,4.11759637]
[1754670784149,8.8659,175.86,175.85,0.03860757]
[1754670786654,3.18,175.83,175.79,4.0789888]
[1754670786951,3.18,175.83,175.7,235.0]
[1754670786952,3.18,175.82,175.77,4.0789888]
[1754670787152,3.18,175.81,175.77,0.88]
[1754670787351,3.18,175.81,175.8,4.9589888]
[1754670787549,3.18,175.83,175.81,0.88]
[1754670787749,3.18,175.83,175.82,4.0789888]
[1754670788252,8.8668,175.83,175.82,4.0789888]
[1754670793049,8.90402136,175.84,175.82,4.0789888]
[1754670793253,5.72402136,175.84,175.82,4.0789888]
[1754670793446,8.90402136,175.84,175.82,4.9589888]
[1754670793647,8.90402136,175.84,175.83,0.88]
[1754670793848,5.72402136,175.84,175.83,0.88]
[1754670794348,8.8668,175.83,175.82,4.0789888]
[1754670794549,0.03742136,175.84,175.82,4.0789888]
[1754670794750,0.03742136,175.84,175.83,0.88]
[1754670795151,3.21742136,175.84,175.83,0.88]
[1754670795349,3.21742136,175.84,175.82,4.9589888]
[1754670795654,3.21742136,175.84,175.82,4.0789888]
[1754670795952,0.03742136,175.84,175.83,0.88]
[1754670797554,3.18,175.88,175.84,0.88]
[1754670797759,8.8655,175.88,175.87,4.0789888]
[1754670800558,5.6855,175.87,175.86,0.04055222]
[1754670800761,8.8655,175.87,175.86,0.04055222]
[1754670800949,21.58825646,175.87,175.86,0.04055222]
[1754670801360,12.72275646,175.88,175.86,4.11954102]
[1754670801555,3.18,175.88,175.86,4.11954102]
[1754670802155,12.72275646,175.89,175.86,4.11954102]
[1754670802348,3.18,175.89,175.88,4.0789888]
[1754670803255,15.90275646,175.89,175.86,4.11954102]
[1754670803457,3.18,175.87,175.86,4.11954102]
[1754670803760,3.18,175.88,175.86,4.99954102]
[1754670803961,3.18,175.88,175.87,4.0789888]
[1754670804149,3.18,175.89,175.87,4.9589888]
[1754670804356,3.18,175.89,175.88,4.0789888]
[1754670804767,12.7644796,175.9,175.88,7.0789888]
[1754670804958,12.7644796,175.9,175.88,4.0789888]
[1754670805158,5.6849,175.89,175.88,7.0789888]
[1754670805354,5.6849,175.89,175.88,4.0789888]
[1754670805557,18.40765646,175.89,175.88,4.0789888]
[1754670806362,5.6849,175.89,175.88,4.0789888]
[1754670806859,8.8649,175.89,175.88,4.0789888]
[1754670807461,8.8655,175.87,175.86,4.11954102]
[1754670807764,21.61253572,175.87,175.86,4.11954102]
[1754670807965,3.18,175.84,175.83,3.0]
[1754670808166,3.18,175.84,175.83,7.0789888]
[1754670808764,5.6859,175.86,175.84,3.0]
[1754670808965,8.8659,175.86,175.85,4.0789888]
[1754670809164,12.74703572,175.87,175.86,3.0]
[1754670809165,0.04329325,175.87,175.86,3.0]
[1754670809966,3.22329325,175.87,175.86,3.0]
[1754670810361,3.18,175.86,175.7,11.3818]
[1754670810570,15.92703572,175.86,175.84,4.0789888]
[1754670810764,3.18,175.85,175.84,4.0789888]
[1754670810971,12.74703572,175.85,175.82,3.0]
[1754670811170,15.92703572,175.84,175.83,4.0789888]
[1754670811369,21.61353572,175.84,175.83,4.0789888]
[1754670813464,0.04351439,175.85,175.79,4.0789888]
[1754670813465,3.18,175.82,175.79,4.0789888]
[1754670813666,3.18,175.81,175.79,4.0789888]
[1754670814372,3.18,175.8,175.79,4.0789888]
[1754670814769,3.18,175.8,175.77,4.0789888]
[1754670815171,15.93194967,175.8,175.76,143.4]
[1754670815474,3.18,175.77,175.76,147.4789888]
[1754670815672,3.18,175.77,175.76,4.0789888]
[1754670815972,8.8688,175.77,175.76,4.0789888]
[1754670816168,8.8688,175.77,175.74,7.0789888]
[1754670816373,8.9092,175.76,175.75,3.07]
[1754670816576,12.75194967,175.78,175.75,3.07]
[1754670816771,3.22,175.79,175.78,3.07]
[1754670817072,3.22,175.78,175.77,7.1489888]
[1754670817269,3.22,175.78,175.75,7.1489888]
[1754670817472,3.22,175.78,175.75,4.0789888]
[1754670817473,3.22,175.77,175.75,4.0789888]
[1754670817775,3.22,175.77,175.74,4.12056961]
[1754670818173,3.22,175.75,175.74,7.19056961]
[1754670819076,3.22,175.75,175.74,4.12056961]
[1754670819370,3.22,175.75,175.74,0.04158081]
[1754670819567,8.9094,175.75,175.74,0.04158081]
[1754670820473,5.6901,175.73,175.72,3.07]
[1754670820673,12.75194967,175.75,175.72,3.07]
[1754670820879,3.22,175.74,175.73,3.07]
[1754670821381,8.9095,175.75,175.74,3.07]
[1754670822377,5.6899,175.74,175.71,4.0789888]
[1754670822676,5.6899,175.74,175.73,3.07]
[1754670822978,3.22,175.75,175.73,3.07]
[1754670823373,3.22,175.74,175.72,3.07]
[1754670823568,3.22,175.74,175.73,3.07]
[1754670823769,0.04320271,175.76,175.71,4.0789888]
[1754670823983,3.22,175.71,175.64,3.07]
[1754670824274,3.22,175.65,175.64,3.07]
[1754670824977,9.53875698,175.65,175.6,4.0789888]
[1754670825174,3.22,175.63,175.6,3.07]
[1754670825371,3.22,175.62,175.59,144.5389888]
[1754670825673,12.75875698,175.65,175.63,3.07]
[1754670825981,3.22,175.64,175.61,3.07]
[1754670826205,3.22,175.63,175.59,143.53]
[1754670826373,3.22,175.62,175.6,3.07]
[1754670826575,3.22,175.64,175.62,3.07]
[1754670826776,9.53875698,175.65,175.62,3.07]
[1754670827081,3.22,175.62,175.6,3.07]
[1754670827782,3.22,175.62,175.61,3.07]
[1754670828376,3.22,175.62,175.61,7.1489888]
[1754670828677,3.22,175.63,175.62,3.07]
[1754670828878,3.22,175.62,175.61,4.0789888]
[1754670829078,3.22,175.62,175.61,7.1489888]
[1754670830074,0.03758611,175.65,175.53,151.16620445]
[1754670830269,3.22,175.63,175.59,4.0789888]
[1754670830472,3.22,175.63,175.61,4.0789888]
[1754670830872,3.25892422,175.63,175.59,3.07]
[1754670831075,3.25892422,175.63,175.61,4.0789888]
[1754670831271,0.03892422,175.63,175.61,4.0789888]
[1754670831480,3.25892422,175.63,175.62,3.07]
[1754670832479,3.22,175.66,175.62,3.07]
[1754670832684,3.22,175.66,175.65,4.0789888]
[1754670832989,8.9121,175.67,175.65,4.0789888]
[1754670833180,3.22,175.66,175.65,7.1489888]
[1754670833380,3.22,175.66,175.65,4.0789888]
[1754670833587,3.22,175.66,175.65,7.1489888]
[1754670834088,3.25898858,175.67,175.65,7.1489888]
[1754670834288,3.25898858,175.67,175.66,4.0789888]
[1754670834508,9.53875698,175.74,175.66,7.1489888]
[1754670834793,382.28,175.78,175.68,3.07]
[1754670834794,3.22,175.69,175.68,3.07]
[1754670835091,5.6908,175.71,175.64,5.6928]
[1754670835294,3.22,175.68,175.66,3.07]
[1754670835693,3.22,175.68,175.67,3.07]
[1754670835896,3.22,175.7,175.67,4.0789888]
[1754670836190,9.53875698,175.79,175.71,3.07]
[1754670836381,3.22,175.73,175.69,3.07]
[1754670836686,3.22,175.73,175.67,4.0789888]
[1754670836687,3.22,175.72,175.71,3.07]
[1754670837687,3.22,175.72,175.71,7.1489888]
[1754670838190,5.69,175.74,175.72,3.07]
[1754670838385,5.69,175.74,175.73,4.0789888]
[1754670840289,8.91,175.74,175.73,4.0789888]
[1754670840779,3.22,175.74,175.73,4.0789888]
[1754670840982,9.53875698,175.81,175.75,3.07]
[1754670841282,3.22,175.77,175.76,3.07]
[1754670841588,3.22,175.81,175.67,4.0789888]
[1754670841781,3.22,175.81,175.75,3.07]
[1754670841981,12.75875698,175.81,175.75,3.07]
[1754670842179,3.22,175.8,175.73,3.07]
[1754670842384,3.22,175.8,175.67,4.0789888]
[1754670842385,9.53875698,175.81,175.76,4.0789888]
[1754670842580,3.22,175.8,175.76,7.1489888]
[1754670842787,3.22,175.8,175.76,4.0789888]
[1754670843198,5.6888,175.77,175.76,4.0789888]
[1754670843389,8.9088,175.77,175.76,4.0789888]
[1754670846396,3.22,175.77,175.74,4.0789888]
[1754670847198,5.6907,175.71,175.67,5.692]
[1754670847493,5.6907,175.71,175.7,4.0789888]
[1754670847695,9.53875698,175.78,175.7,4.0789888]
[1754670848000,3.18,175.73,175.72,3.01]
[1754670848190,8.8701,175.73,175.72,4.0789888]
[1754670848495,8.8701,175.73,175.72,7.0889888]
[1754670850096,5.6901,175.73,175.72,7.0889888]
[1754670851396,8.8701,175.73,175.72,7.0889888]
[1754670851593,5.6901,175.73,175.72,7.0889888]
[1754670854800,5.6899,175.74,175.72,7.0889888]
[1754670855001,3.18,175.75,175.74,3.01]
[1754670855790,3.18,175.75,175.74,7.0889888]
[1754670856292,8.8696,175.75,175.74,7.0889888]
[1754670858101,18.40835698,175.75,175.74,7.0889888]
[1754670858303,8.06301717,175.78,175.75,0.69]
[1754670858502,3.18,175.86,175.82,5.6869]
[1754670858798,3.18,175.86,175.85,4.0789888]
[1754670859002,12.75194967,175.93,175.87,3.01]
[1754670859207,12.75194967,175.93,175.9,4.0789888]
[1754670859402,12.75194967,175.95,175.88,4.0789888]
[1754670860004,5.6849,175.89,175.88,4.0789888]
[1754670860712,5.6847,175.9,175.88,7.0889888]
[1754670861004,3.18,175.94,175.88,4.0789888]
[1754670861406,5.6849,175.89,175.88,4.0789888]
[1754670861611,8.8649,175.89,175.88,4.0789888]
[1754670866010,5.6852,175.88,175.87,0.03794336]
[1754670866209,8.8652,175.88,175.87,0.03794336]
[1754670868512,5.6852,175.88,175.87,3.04794336]
[1754670868709,11.365,175.97,175.88,3.01]
[1754670868710,3.18,175.89,175.88,3.01]
[1754670868905,3.18,175.89,175.88,7.0889888]
[1754670869101,8.8649,175.89,175.88,7.0889888]
[1754670872311,5.6847,175.9,175.88,7.0889888]
[1754670872509,3.18,175.98,175.9,3.01]
[1754670872709,3.18,175.98,175.95,4.0789888]
[1754670872909,5.6826,175.96,175.95,4.0789888]
[1754670873212,8.8626,175.96,175.95,4.0789888]
[1754670874814,153.29194967,176.06,175.97,3.01]
[1754670874815,3.18,176.0,175.97,3.01]
[1754670875115,3.18,176.02,176.0,3.01]
[1754670875315,0.0428031,176.0,175.99,4.0789888]
[1754670875522,3.2228031,176.0,175.99,4.11609034]
[1754670875818,3.18,176.0,175.99,4.11609034]
[1754670876320,8.8613,176.0,175.99,4.11609034]
[1754670877509,3.2,176.01,175.99,7.28609034]
[1754670877714,3.2,176.07,175.99,4.11609034]
[1754670878116,5.6814,176.0,175.99,4.11609034]
[1754670878319,5.6814,176.0,175.99,0.03710154]
[1754670878320,8.8814,176.0,175.99,0.03710154]
[1754670879420,5.683,175.95,175.94,4.0789888]
[1754670879623,8.883,175.95,175.94,4.0789888]
[1754670880314,8.8838,175.93,175.92,4.0789888]
[1754670880509,5.6838,175.93,175.92,7.2489888]
[1754670880709,5.6838,175.93,175.92,9.80364286]
[1754670881122,5.6843,175.91,175.9,9.80364286]
[1754670881423,3.2,175.9,175.88,9.80364286]
[1754670881714,3.2,175.89,175.88,9.80364286]
[1754670882126,8.8849,175.89,175.88,9.80364286]
[1754670883118,3.2,175.87,175.84,6.63364286]
[1754670883317,3.2,175.87,175.85,3.17]
[1754670883516,5.6859,175.86,175.85,3.17]
[1754670884117,3.2,175.87,175.85,3.17]
[1754670884316,3.2,175.87,175.84,6.63364286]
[1754670884317,8.8856,175.87,175.86,3.17]
[1754670884720,5.6856,175.87,175.86,3.17]
[1754670884917,5.6853,175.88,175.86,6.63364286]
[1754670885220,5.6853,175.88,175.87,3.17]
[1754670886123,8.8853,175.88,175.87,3.17]
[1754670886525,5.6856,175.87,175.86,6.63364286]
[1754670886823,5.6856,175.87,175.86,9.80364286]
[1754670887322,8.8853,175.88,175.87,3.17]
[1754670887626,3.2,175.88,175.87,3.17]
[1754670889222,8.8852,175.88,175.87,3.17]
[1754670889727,3.2,175.88,175.87,3.17]
[1754670891825,3.2,175.87,175.86,6.63364286]
[1754670892122,3.2,175.87,175.86,9.80364286]
[1754670893027,0.03643959,175.9,175.86,9.80364286]
[1754670893327,3.2,175.87,175.86,9.80364286]
[1754670893924,3.2,175.89,175.86,9.80364286]
[1754670894227,3.2,175.88,175.86,6.63364286]
[1754670894431,3.2,175.89,175.86,6.63364286]
[1754670894725,3.2,175.88,175.87,3.17]
[1754670895220,0.03643959,175.9,175.87,3.17]
[1754670895420,0.03643959,175.9,175.86,6.63364286]
[1754670895421,3.2,175.93,175.89,3.17]
[1754670895623,3.2,175.95,175.93,3.17]
[1754670895819,3.2,175.95,175.94,3.17]
[1754670896831,5.6821,175.98,175.94,3.17]
[1754670897027,140.48,176.02,175.95,9.80364286]
[1754670897236,12.75194967,176.04,175.95,9.80364286]
[1754670897530,3.2,175.97,175.96,3.17]
[1754670898233,19.38559253,176.05,175.96,3.17]
[1754670898528,3.2,175.97,175.96,3.17]
[1754670900331,3.2,175.98,175.95,6.63364286]
[1754670900924,3.2,175.98,175.93,6.63364286]
[1754670901127,3.2,175.98,175.95,0.04344982]
[1754670901532,8.8827,175.96,175.95,0.04344982]
[1754670901825,8.8827,175.96,175.91,6.63364286]
[1754670902024,3.2,175.95,175.91,9.80364286]
[1754670902226,3.2,175.95,175.94,0.03639334]
[1754670902435,8.883,175.95,175.94,0.03639334]
[1754670902831,3.2,175.95,175.94,0.03639334]
[1754670903232,3.2,175.95,175.94,0.00061922]
[1754670903433,3.2,175.95,175.87,7.24102095]
[1754670903629,3.2,175.93,175.87,7.24102095]
[1754670903831,3.2,175.93,175.87,12.92652095]
[1754670904034,3.2,175.93,175.87,7.24102095]
[1754670904632,5.6846,175.9,175.87,3.17]
[1754670904940,3.2,175.88,175.87,3.17]
[1754670905237,3.2,175.91,175.86,3.17]
[1754670905422,3.2,175.87,175.84,6.63802953]
[1754670905627,3.2,175.87,175.85,3.17]
[1754670905827,3.2,175.86,175.85,3.17]
[1754670906234,5.72882977,175.88,175.85,3.17]
[1754670906432,3.21,175.87,175.85,3.17]
[1754670907232,0.04332977,175.88,175.86,3.14]
[1754670907433,0.04332977,175.88,175.84,6.63802953]
[1754670907738,0.04332977,175.88,175.87,3.14]
[1754670908234,3.25332977,175.88,175.87,3.14]
[1754670908438,3.21,175.86,175.85,3.14]
[1754670908737,3.21,175.86,175.84,6.63802953]
[1754670908738,3.21,175.86,175.84,9.77802953]
[1754670908938,3.21,175.86,175.82,5.6871]
[1754670908939,3.21,175.85,175.83,6.63802953]
[1754670909135,0.04332977,175.88,175.82,9.77802953]
[1754670909334,3.21,175.83,175.82,9.77802953]
[1754670909535,3.21,175.83,175.82,3.14]
[1754670910541,0.03583478,175.84,175.81,148.36878087]
[1754670910744,3.21,175.83,175.78,147.05802953]
[1754670911038,3.21,175.83,175.78,150.19802953]
[1754670911334,3.21,175.83,175.78,140.42]
[1754670911539,3.21,175.83,175.65,11.3853]
[1754670911540,3.21,175.83,175.74,9.77802953]
[1754670911743,3.21,175.79,175.74,9.77802953]
[1754670912041,3.21,175.79,175.72,3.14]
[1754670912234,8.899,175.77,175.71,5.6907]
[1754670912433,3.21,175.76,175.71,8.8307]
[1754670912635,3.21,175.76,175.71,3.14]
[1754670912831,3.21,175.76,175.72,3.14]
[1754670913026,3.21,175.76,175.7,12.32892953]
[1754670913231,3.21,175.76,175.7,15.46892953]
[1754670913427,3.21,175.76,175.71,5.6906]
[1754670913636,3.21,175.76,175.71,8.8306]
[1754670913847,3.21,175.76,175.72,3.14]
[1754670914140,3.21,175.75,175.73,3.14]
[1754670914339,3.21,175.77,175.74,6.63802953]
[1754670914531,3.25157217,175.78,175.75,3.14]
[1754670914737,3.25157217,175.78,175.76,9.77802953]
[1754670914941,0.04157217,175.78,175.77,3.14]
[1754670915629,3.25157217,175.78,175.76,6.63802953]
[1754670915828,3.25157217,175.78,175.76,9.77802953]
[1754670916033,3.25157217,175.78,175.77,3.14]
[1754670916239,3.21,175.77,175.76,6.63802953]
[1754670916428,0.04157217,175.78,175.76,9.77802953]
[1754670916635,0.04157217,175.78,175.77,3.14]
[1754670917333,0.04157217,175.78,175.76,6.63802953]
[1754670917536,3.21,175.77,175.75,6.63802953]
[1754670917838,3.21,175.77,175.75,9.77802953]
[1754670918060,3.21,175.77,175.76,3.14]
[1754670918530,0.0432485,175.78,175.75,6.63802953]
[1754670918729,0.0432485,175.78,175.77,3.14]
[1754670918928,0.0432485,175.78,175.77,9.77802953]
[1754670919645,0.0432485,175.78,175.77,15.46682953]